bitfinex/quotes_ETHUSD_20240731
["timestamp","ask_amount","ask_price","bid_price","bid_amount"]
[1722449563131,3.02896,3301.5,3300.8,3.0295]
[1722449563317,3.0,3301.7,3300.5,2.3348]
[1722449563521,3.0,3301.7,3300.4,3.02992]
[1722449563522,3.02881,3301.7,3300.4,3.02992]
[1722449563688,3.02935,3301.1,3300.3,3.02996]
[1722449563893,3.0295,3300.9,3300.3,3.02994]
[1722449564197,3.02942,3301.0,3300.2,3.03005]
[1722449564407,3.02942,3301.0,3300.1,3.03016]
[1722449564408,3.02953,3300.9,3300.1,3.03016]
[1722449564628,3.02924,3301.2,3300.3,3.02993]
[1722449564949,3.02884,3301.6,3300.4,3.02987]
[1722449565231,3.02884,3301.6,3300.1,3.582566]
[1722449565232,3.02945,3301.0,3300.3,3.02997]
[1722449565533,3.0,3301.5,3300.1,3.582566]
[1722449565734,1.815,3303.3,3300.1,3.582566]
[1722449565735,3.02918,3301.3,3300.5,3.02982]
[1722449565899,3.0,3301.7,3300.5,3.02982]
[1722449566100,3.02916,3301.3,3300.5,3.02978]
[1722449566447,3.02896,3301.5,3300.6,3.02969]
[1722449566608,3.02916,3301.3,3300.6,3.02969]
[1722449567844,3.0293,3301.1,3300.4,3.02986]
[1722449568005,3.02945,3301.0,3300.3,3.03002]
[1722449568199,3.02948,3300.9,3300.5,0.04004707]
[1722449568507,3.0293,3301.1,3300.3,3.03001]
[1722449568723,3.0293,3301.1,3300.6,0.03998246]
[1722449568921,3.0293,3301.1,3300.5,3.02983]
[1722449569244,3.02924,3301.2,3300.6,0.04001604]
[1722449569400,3.02924,3301.2,3300.5,3.02979]
[1722449569604,3.02924,3301.2,3300.3,3.02997]
[1722449569605,3.0294,3301.0,3300.7,0.04014166]
[1722449569801,3.02926,3301.2,3300.3,3.02994]
[1722449570013,3.02926,3301.2,3300.8,0.04007705]
[1722449570219,3.02939,3301.0,3300.3,3.02994]
[1722449570448,3.02926,3301.2,3300.9,0.04001245]
[1722449570602,3.02926,3301.2,3300.5,3.02978]
[1722449570938,3.02929,3301.1,3301.0,0.03994786]
[1722449571138,3.02955,3300.9,3300.2,10.32011]
[1722449571350,3.02935,3301.1,3300.3,3.02995]
[1722449571554,3.02938,3301.0,3300.3,3.02995]
[1722449571907,3.02915,3301.3,3300.6,3.02969]
[1722449572108,1.55625176,3301.6,3300.3,1.3902526]
[1722449572109,1.25625176,3301.6,3300.3,1.3902526]
[1722449572352,4.28524176,3301.5,3300.8,3.02951]
[1722449572514,4.28524176,3301.5,3300.6,6.05935]
[1722449572515,6.02902,3301.4,3300.6,6.05935]
[1722449572713,6.02902,3301.4,3300.3,1.3902526]
[1722449572930,3.02916,3301.3,3300.6,3.02969]
[1722449573148,3.02916,3301.3,3300.7,3.02965]
[1722449573344,3.02916,3301.3,3300.5,3.02978]
[1722449573555,3.02916,3301.3,3300.4,3.89791526]
[1722449573758,3.02916,3301.3,3300.6,3.02969]
[1722449573963,1.25625176,3301.6,3301.0,3.02932]
[1722449574181,1.25625176,3301.8,3301.2,3.02914]
[1722449574375,1.25625176,3301.9,3301.5,3.02884]
[1722449574522,12.38879209,3302.4,3301.6,3.0288]
[1722449574523,1.25625176,3302.3,3301.6,3.0288]
[1722449574728,1.25625176,3302.3,3301.6,3.02876]
[1722449575056,1.25625176,3302.3,3301.4,3.02898]
[1722449575057,1.25625176,3302.1,3301.5,3.02887]
[1722449575386,10.49814,3302.4,3301.5,3.02887]
[1722449575387,7.47,3302.4,3302.0,3.0284]
[1722449575546,1.25625176,3302.6,3302.1,3.02829]
[1722449575754,4.28403176,3302.8,3302.1,3.02829]
[1722449576178,1.25625176,3302.8,3302.5,3.02799]
[1722449576389,1.25625176,3303.1,3302.5,3.02799]
[1722449576739,3.82193821,3303.2,3302.5,3.02799]
[1722449576740,5.07818997,3303.2,3302.5,3.02799]
[1722449576963,2.05077997,3303.2,3302.5,3.02799]
[1722449577180,2.05077997,3303.2,3302.0,2.3358]
[1722449577181,0.79452821,3303.2,3302.7,3.02774]
[1722449577351,1.25625176,3303.5,3302.9,3.02762]
[1722449577560,1.25625176,3303.4,3302.6,3.02789]
[1722449577778,3.02721,3303.4,3302.7,3.02776]
[1722449578096,3.02721,3303.4,3302.3,0.06055304]
[1722449578097,3.02756,3303.0,3302.3,3.02817]
[1722449578232,3.02756,3303.0,3302.2,3.394]
[1722449578233,3.02766,3302.9,3302.0,5.36422]
[1722449578439,0.605522,3302.9,3302.2,3.02828]
[1722449578749,1.25625176,3303.1,3302.3,3.02818]
[1722449578939,3.02746,3303.1,3302.3,3.02818]
[1722449579277,3.02746,3303.1,3302.0,2.3358]
[1722449579278,3.02754,3303.1,3302.0,5.36418]
[1722449579439,3.02774,3302.8,3302.1,3.02833]
[1722449579780,3.02755,3303.0,3302.3,3.0281]
[1722449579951,1.25625176,3303.2,3302.5,3.02795]
[1722449580147,3.02743,3303.2,3302.5,3.02795]
[1722449580346,3.75852218,3303.2,3302.5,3.02795]
[1722449580666,3.75851218,3303.2,3302.5,3.02797]
[1722449580874,3.75851218,3303.2,3302.6,3.02791]
[1722449581184,0.73109218,3303.2,3302.7,3.02779]
[1722449581359,1.25625176,3303.4,3302.9,3.02763]
[1722449581564,1.25625176,3303.5,3302.7,3.02778]
[1722449581779,0.58302853,3303.4,3302.7,3.02778]
[1722449582086,1.25625176,3303.5,3303.1,3.02745]
[1722449582296,1.25625176,3303.6,3302.9,3.02757]
[1722449582499,1.25625176,3303.5,3303.2,0.04524381]
[1722449582792,1.25625176,3303.8,3303.2,3.0273]
[1722449583007,3.02696,3303.7,3303.3,0.04516497]
[1722449583287,3.02718,3303.4,3302.6,3.02785]
[1722449583504,3.02728,3303.3,3302.7,3.02782]
[1722449583667,3.02728,3303.3,3302.5,10.31794]
[1722449584001,3.02728,3303.3,3302.0,17.74418]
[1722449584002,1.25625176,3303.6,3302.9,3.02755]
[1722449584209,1.25625176,3303.6,3302.6,0.06055625]
[1722449584210,1.25625176,3303.7,3303.4,3.02716]
[1722449584486,3.0,3304.0,3303.4,3.02716]
[1722449584487,1.25625176,3303.9,3303.5,3.02709]
[1722449584689,1.25625176,3304.3,3303.6,3.02699]
[1722449584873,1.25625176,3304.4,3303.6,0.0605338]
[1722449585075,1.25625176,3304.4,3303.8,3.0268]
[1722449585076,1.33263953,3304.4,3303.8,3.0268]
[1722449585268,4.28243176,3304.5,3303.8,3.0268]
[1722449585585,3.02627,3304.4,3303.6,3.02693]
[1722449585887,1.88884028,3304.9,3303.3,7.29]
[1722449585888,1.25625176,3304.7,3303.9,3.02666]
[1722449586182,3.02611,3304.6,3304.0,3.02656]
[1722449586387,3.02611,3304.6,3303.8,3.02674]
[1722449586545,4.28224176,3304.8,3303.9,3.02667]
[1722449586749,3.84359753,3304.8,3304.1,3.02652]
[1722449586957,0.81761753,3304.8,3304.3,3.02634]
[1722449587258,3.02564,3305.1,3304.4,3.0262]
[1722449587663,3.02552,3305.3,3304.5,3.02615]
[1722449588000,3.02558,3305.2,3304.5,3.02615]
[1722449588212,4.28142176,3305.6,3304.4,0.06052118]
[1722449588418,3.02536,3305.4,3304.6,3.02604]
[1722449588563,0.58554553,3305.6,3304.4,3.02623]
[1722449588765,0.0901056,3306.1,3304.6,3.026]
[1722449588766,3.0254,3305.4,3304.6,3.026]
[1722449589005,3.0254,3305.4,3304.7,3.02598]
[1722449589371,3.0254,3305.4,3304.6,3.02599]
[1722449589683,4.37107736,3306.1,3304.4,3.02618]
[1722449589883,3.02524,3305.6,3304.4,3.02618]
[1722449590087,3.02568,3305.1,3304.2,3.02641]
[1722449590325,3.02568,3305.1,3304.0,5.37979]
[1722449590326,3.02547,3305.3,3304.0,5.37979]
[1722449590464,3.02583,3304.9,3304.3,0.04403078]
[1722449590667,3.02583,3304.9,3304.2,3.02643]
[1722449590921,3.02608,3304.7,3304.3,0.04403078]
[1722449591221,3.02618,3304.5,3304.3,0.04403078]
[1722449591367,3.02618,3304.5,3303.8,3.0268]
[1722449591570,3.02626,3304.4,3304.3,0.04403078]
[1722449591770,3.02713,3303.5,3302.7,2.4523]
[1722449592041,3.02694,3303.7,3302.7,2.4523]
[1722449592167,3.02655,3304.1,3303.2,3.02728]
[1722449592168,3.02675,3303.9,3303.2,3.02728]
[1722449592481,3.0266,3304.1,3302.7,2.4523]
[1722449592681,3.0,3304.0,3302.8,0.24523]
[1722449592911,6.02665,3304.0,3303.0,3.02751]
[1722449593066,6.02665,3304.0,3302.8,3.27292]
[1722449593067,3.02684,3303.8,3302.8,3.27292]
[1722449593426,3.0,3304.0,3302.7,2.4523]
[1722449593570,3.02717,3303.5,3302.7,2.4523]
[1722449593927,3.0,3304.3,3302.7,5.48012]
[1722449593928,3.02666,3304.0,3302.7,5.48012]
[1722449594086,3.02692,3303.7,3302.9,3.02758]
[1722449594830,3.02719,3303.4,3302.7,2.4523]
[1722449595123,3.02668,3304.0,3301.8,3.0]
[1722449595124,3.02714,3303.5,3302.5,3.028]
[1722449595418,3.02756,3303.0,3302.1,2.4319]
[1722449595615,0.302714,3303.5,3302.2,3.02823]
[1722449595616,3.02766,3302.9,3302.2,3.02823]
[1722449595870,3.02747,3303.1,3302.1,2.4319]
[1722449596070,3.02794,3302.6,3301.7,3.02866]
[1722449596221,3.02779,3302.8,3301.8,3.02858]
[1722449596426,3.02779,3302.8,3302.0,3.0284]
[1722449596626,3.02779,3302.8,3301.8,3.623596]
[1722449596627,3.02767,3302.9,3301.6,2.92158]
[1722449596856,3.0277,3302.9,3302.1,3.02836]
[1722449597059,3.02779,3302.8,3302.0,3.0284]
[1722449597389,3.02762,3303.0,3302.2,3.02827]
[1722449597688,3.02721,3303.4,3302.4,3.02805]
[1722449597978,1.25625176,3303.7,3303.0,3.02753]
[1722449597979,3.02697,3303.7,3303.0,3.02753]
[1722449598188,3.02702,3303.6,3302.9,0.06054435]
[1722449598365,7.47,3304.1,3302.9,0.30881943]
[1722449598366,3.02673,3303.9,3302.9,0.30881943]
[1722449598570,3.02673,3303.9,3302.6,2.4344]
[1722449598571,3.02704,3303.6,3302.6,2.4344]
[1722449598892,7.47,3304.1,3302.6,5.4623]
[1722449599051,7.47,3304.1,3302.6,5.46224]
[1722449599052,3.02724,3303.4,3302.6,5.46224]
[1722449599433,3.02734,3303.3,3302.6,2.4344]
[1722449599633,3.02751,3303.1,3302.5,7.29]
[1722449600091,3.02756,3303.0,3302.5,7.29]
[1722449600387,6.05485,3303.2,3302.5,7.29]
[1722449600535,3.02755,3303.0,3302.5,7.29]
[1722449600738,3.02783,3302.7,3302.5,7.29]
[1722449600933,2.3928,3303.5,3301.9,7.29]
[1722449601293,3.02769,3302.9,3302.1,3.02829]
[1722449601434,3.02775,3302.8,3302.1,3.02829]
[1722449602128,3.02747,3303.1,3302.1,3.02829]
[1722449602363,3.0276,3303.0,3302.3,3.02818]
[1722449602575,3.02781,3302.8,3301.9,10.31854]
[1722449602774,3.02781,3302.8,3302.1,3.02837]
[1722449602946,3.02801,3302.5,3301.9,7.29]
[1722449603271,6.05539,3302.9,3302.1,3.02836]
[1722449603478,3.0275,3303.1,3302.3,3.02818]
[1722449603791,3.02729,3303.3,3302.6,3.02789]
[1722449603966,0.889502,3303.4,3302.3,3.633784]
[1722449603967,3.02753,3303.1,3302.3,3.633784]
[1722449604272,3.02757,3303.0,3302.3,3.633784]
[1722449604461,3.02731,3303.3,3302.4,3.02809]
[1722449604644,3.02731,3303.3,3301.9,7.29]
[1722449604645,3.02738,3303.2,3302.5,3.02795]
[1722449604870,0.889502,3303.4,3302.3,0.06055653]
[1722449605090,7.47,3303.6,3302.3,0.06055653]
[1722449605091,1.25557467,3303.9,3302.4,2.4415]
[1722449605291,3.02676,3303.9,3303.2,3.02733]
[1722449605436,6.05323,3304.1,3303.2,3.02729]
[1722449605636,3.0264,3304.3,3303.3,3.02722]
[1722449605875,3.02661,3304.1,3303.4,3.02711]
[1722449606279,3.0,3304.0,3303.4,3.02711]
[1722449606581,3.0,3304.0,3302.8,3.02766]
[1722449606582,3.02701,3303.6,3302.8,3.02766]
[1722449606740,3.02688,3303.8,3302.8,3.02769]
[1722449607079,3.02724,3303.4,3302.5,7.29]
[1722449607280,3.02714,3303.5,3302.7,3.02776]
[1722449607483,3.02744,3303.2,3302.5,7.29]
[1722449607772,3.02718,3303.4,3302.6,3.02785]
[1722449608072,3.02718,3303.4,3302.5,7.29]
[1722449608073,0.302718,3303.4,3302.5,7.29]
[1722449608259,3.02739,3303.2,3302.5,7.29]
[1722449608462,3.0,3303.8,3302.5,7.29]
[1722449608463,3.02784,3302.7,3302.5,7.29]
[1722449608653,3.02769,3302.9,3302.1,3.02831]
[1722449608853,3.0275,3303.1,3302.3,3.02811]
[1722449609051,3.02756,3303.0,3302.4,3.0281]
[1722449609268,3.02747,3303.1,3302.5,3.028]
[1722449609441,3.02747,3303.1,3302.1,3.02829]
[1722449609442,3.02779,3302.8,3302.1,3.02829]
[1722449610091,3.02759,3303.0,3302.3,3.02819]
[1722449610375,3.02765,3302.9,3302.1,3.02829]
[1722449610581,3.02774,3302.8,3302.1,3.02829]
[1722449610744,3.02756,3303.0,3301.9,5.39233]
[1722449610939,3.02777,3302.8,3301.9,5.39228]
[1722449611166,3.02788,3302.7,3302.0,3.0284]
[1722449611352,3.02777,3302.8,3301.9,2.3638]
[1722449611353,3.02792,3302.6,3301.9,2.3638]
[1722449611556,3.02777,3302.8,3301.9,3.02853]
[1722449611878,3.02777,3302.8,3302.1,3.02831]
[1722449612076,3.02777,3302.8,3302.2,3.02827]
[1722449612442,3.02777,3302.8,3302.1,3.02832]
[1722449612937,3.02777,3302.8,3301.7,7.29]
[1722449612938,0.64186238,3302.8,3301.7,7.29]
[1722449613141,0.64186238,3302.8,3301.2,12.38]
[1722449613142,3.02852,3302.0,3301.2,3.02916]
[1722449613379,3.02852,3302.0,3301.0,7.5926]
[1722449613380,3.02833,3302.2,3301.4,3.02896]
[1722449613544,3.02834,3302.2,3301.2,3.02912]
[1722449613749,3.02853,3302.0,3301.1,3.02922]
[1722449614072,3.02886,3301.6,3301.0,7.29]
[1722449614384,3.02867,3301.8,3301.0,7.29]
[1722449614810,3.02867,3301.8,3301.0,10.31932]
[1722449615085,3.02884,3301.6,3301.0,7.29]
[1722449616087,3.02867,3301.8,3301.0,10.31935]
[1722449616380,6.05754,3301.7,3301.0,7.29]
[1722449616682,3.02874,3301.7,3301.0,7.29]
[1722449616863,3.02884,3301.6,3301.0,7.29]
[1722449617064,3.02872,3301.8,3301.0,10.31938]
[1722449617263,3.02841,3302.1,3301.0,8.73519842]
[1722449617459,3.02857,3301.9,3301.1,3.0292]
[1722449617665,3.02857,3301.9,3301.2,3.02917]
[1722449618005,3.02847,3302.0,3301.3,3.0291]
[1722449618148,4.28601253,3302.1,3301.1,3.0292]
[1722449618149,3.02855,3301.9,3301.2,3.02913]
[1722449618347,6.05719,3301.9,3301.1,3.0292]
[1722449618552,3.02865,3301.8,3301.1,3.0292]
[1722449618747,1.57200317,3302.3,3301.1,4.20563984]
[1722449618748,3.02858,3301.9,3301.1,4.20563984]
[1722449618987,3.02877,3301.7,3301.1,36.17643984]
[1722449619160,3.02904,3301.4,3301.0,7.29]
[1722449619359,3.02908,3301.4,3300.5,3.02979]
[1722449619562,1.25760253,3301.7,3300.3,12.79355]
[1722449619762,3.02944,3301.0,3300.3,12.79355]
[1722449620292,3.02922,3301.2,3300.3,12.79355]
[1722449620505,1.25760253,3301.6,3300.8,3.02956]
[1722449620673,7.28637253,3301.7,3300.8,3.02956]
[1722449620867,3.02913,3301.3,3300.6,3.02967]
[1722449621165,3.02938,3301.1,3300.4,3.02985]
[1722449621371,3.02917,3301.3,3300.4,3.0299]
[1722449621595,1.25760253,3301.6,3300.4,3.0299]
[1722449621773,3.02943,3301.0,3300.3,9.7636]
[1722449621987,1.98623978,3301.5,3300.3,9.7636]
[1722449621988,3.02906,3301.4,3300.3,9.7636]
[1722449622312,0.72863725,3301.5,3300.3,12.79356]
[1722449622313,3.02938,3301.0,3300.3,12.79356]
[1722449622592,0.72863725,3301.5,3300.3,12.79356]
[1722449622593,3.02957,3300.8,3300.3,7.29]
[1722449622899,3.02957,3300.8,3300.0,3.03021]
[1722449623614,3.02957,3300.8,3300.1,3.03019]
[1722449623907,0.72863725,3301.5,3300.1,3.03014]
[1722449624062,3.02956,3300.9,3300.1,3.03014]
[1722449624259,3.02959,3300.8,3300.1,3.03014]
[1722449624615,6.05924,3300.8,3300.1,3.03014]
[1722449624820,3.02959,3300.8,3300.1,3.03014]
[1722449624962,3.02977,3300.6,3299.9,10.32036]
[1722449625588,3.02977,3300.6,3299.9,45.32036]
[1722449625978,3.02977,3300.6,3299.9,45.32031]
[1722449626180,3.02991,3300.5,3299.9,44.6890166]
[1722449626385,3.02923,3301.2,3299.9,7.29]
[1722449626386,3.03,3300.4,3299.9,7.29]
[1722449626625,3.02964,3300.8,3299.9,7.29]
[1722449626827,6.05889,3301.0,3300.3,3.03]
[1722449627026,3.0292,3301.2,3300.4,3.02993]
[1722449627192,3.0292,3301.2,3300.6,3.02974]
[1722449628030,3.02867,3301.8,3301.0,3.0293]
[1722449628031,6.05741,3301.8,3301.0,3.0293]
[1722449628233,2.4273,3302.0,3301.0,0.06058049]
[1722449628234,3.0285,3302.0,3301.0,0.06058049]
[1722449628520,3.0285,3302.0,3301.4,3.029]
[1722449628706,3.02865,3301.8,3301.1,3.02928]
[1722449629022,3.02845,3302.1,3301.0,0.06058049]
[1722449629230,0.302845,3302.0,3301.4,3.02899]
[1722449629369,7.47,3302.4,3300.9,35.0]
[1722449629370,10.49815,3302.4,3301.5,3.08944499]
[1722449629572,7.47,3302.4,3301.8,3.02858]
[1722449629895,3.0279,3302.7,3301.8,3.02858]
[1722449630089,3.3908938,3303.0,3302.1,3.02831]
[1722449630393,3.02776,3302.8,3302.1,3.02831]
[1722449630817,3.3908938,3303.0,3301.6,7.29]
[1722449631018,3.02738,3303.2,3302.4,3.02809]
[1722449631509,3.02747,3303.1,3302.4,3.02804]
[1722449631907,10.49707,3303.6,3302.8,3.02772]
[1722449632203,3.02715,3303.5,3302.8,3.02772]
[1722449632423,3.02715,3303.5,3302.6,3.02782]
[1722449632622,7.47,3303.6,3302.4,3.02806]
[1722449632623,3.02737,3303.2,3302.4,3.02802]
[1722449632911,3.02761,3303.0,3302.3,3.02818]
[1722449633095,3.02761,3303.0,3302.1,5.32007]
[1722449633293,3.02761,3303.0,3302.3,3.02813]
[1722449634010,3.02739,3303.2,3302.5,3.02799]
[1722449634395,3.02739,3303.2,3302.6,3.02789]
[1722449634811,3.02746,3303.1,3302.4,3.02808]
[1722449635002,3.02733,3303.3,3302.4,3.02808]
[1722449635210,3.02743,3303.2,3302.5,0.0605564]
[1722449635528,3.02764,3302.9,3302.4,0.30886365]
[1722449635692,3.02761,3303.0,3302.2,7.29]
[1722449635893,3.02761,3303.0,3302.3,3.02818]
[1722449636119,3.0274,3303.2,3302.3,3.02818]
[1722449636426,1.25531622,3303.5,3302.2,7.29]
[1722449636593,3.02729,3303.3,3302.6,3.02786]
[1722449636792,0.88829181,3303.3,3302.7,3.02775]
[1722449637009,1.25531622,3303.5,3302.7,3.02775]
[1722449637220,3.02719,3303.4,3302.8,3.02766]
[1722449637386,2.82844811,3303.7,3303.2,3.02731]
[1722449637592,1.25531622,3303.7,3303.2,3.02731]
[1722449637793,1.25531622,3303.8,3303.3,3.02727]
[1722449638046,3.02672,3303.9,3303.3,3.02727]
[1722449638251,0.58551681,3303.9,3303.4,3.02712]
[1722449638405,1.25531622,3304.1,3303.6,3.02693]
[1722449638589,1.25531622,3304.2,3303.6,3.02693]
[1722449639036,1.25531622,3304.2,3303.7,3.0269]
[1722449639326,1.25953133,3304.2,3303.7,3.0269]
[1722449639530,1.84555588,3304.2,3303.5,3.02702]
[1722449639702,1.84555588,3304.2,3303.6,3.02694]
[1722449639908,3.02657,3304.1,3303.5,3.02707]
[1722449640094,0.58602455,3304.2,3303.4,3.02714]
[1722449640295,4.84555588,3304.2,3303.2,3.02729]
[1722449640524,3.0268,3303.9,3303.2,3.02729]
[1722449641048,1.25953133,3303.9,3303.2,3.02735]
[1722449641251,4.28623133,3304.0,3303.1,3.02744]
[1722449641748,4.28623133,3304.0,3303.3,6.05446]
[1722449641897,3.02677,3303.9,3303.1,3.0274]
[1722449642103,0.605347,3303.8,3303.2,3.02734]
[1722449642637,0.605347,3303.8,3303.1,3.02738]
[1722449642841,3.632187,3303.8,3303.1,3.02738]
[1722449643044,3.632187,3303.8,3303.0,7.29]
[1722449643045,3.02716,3303.5,3303.0,7.29]
[1722449643252,1.25953133,3303.8,3303.0,7.29]
[1722449643406,0.42862913,3303.7,3303.1,3.02737]
[1722449643594,0.42862913,3303.7,3303.2,3.02735]
[1722449643954,1.25953133,3303.8,3303.0,10.31746]
[1722449644245,4.25953133,3304.0,3303.4,3.02713]
[1722449644742,3.0,3304.0,3303.4,3.02713]
[1722449645097,4.25953133,3304.2,3303.5,0.06053753]
[1722449645396,4.25953133,3304.2,3302.5,3.394]
[1722449645397,3.02621,3304.5,3303.8,3.02675]
[1722449645598,4.71436546,3304.4,3303.6,3.02692]
[1722449646025,1.68810546,3304.4,3303.8,3.02676]
[1722449646210,1.25953133,3304.5,3304.0,3.02662]
[1722449646534,3.02617,3304.5,3303.8,3.02676]
[1722449646735,3.0,3304.4,3303.6,3.02692]
[1722449646937,3.02636,3304.3,3303.7,3.0269]
[1722449647100,3.02618,3304.5,3303.7,3.0269]
[1722449647301,3.0,3304.4,3303.7,3.0269]
[1722449647500,3.02642,3304.3,3303.5,3.02701]
[1722449647833,3.02635,3304.3,3303.6,3.02698]
[1722449648037,3.02635,3304.3,3303.4,3.02711]
[1722449648038,3.0265,3304.2,3303.4,3.02711]
[1722449648235,3.0265,3304.2,3303.5,3.02709]
[1722449648745,3.0265,3304.2,3303.0,3.0275]
[1722449648746,0.905285,3304.2,3303.0,3.02747]
[1722449649041,6.02659,3304.1,3303.4,3.02714]
[1722449649198,6.02659,3304.1,3303.5,3.02709]
[1722449649615,6.02659,3304.1,3303.4,3.02714]
[1722449649912,6.02659,3304.1,3303.2,3.0273]
[1722449649913,6.02658,3304.1,3303.2,3.0273]
[1722449650130,6.02658,3304.1,3303.4,3.02712]
[1722449650316,6.02658,3304.1,3303.2,3.02732]
[1722449650317,3.02665,3304.0,3303.2,6.0546]
[1722449650517,0.905323,3304.0,3303.3,3.0272]
[1722449650722,3.931983,3304.0,3303.4,3.02718]
[1722449650904,3.02673,3303.9,3303.3,3.02719]
[1722449651246,3.02673,3303.9,3303.1,3.02743]
[1722449651536,3.02696,3303.7,3302.9,3.02758]
[1722449651740,3.632332,3303.7,3303.0,3.02749]
[1722449652038,3.632332,3303.7,3302.7,5.42127]
[1722449652039,3.02705,3303.6,3302.8,3.02765]
[1722449652541,3.02675,3303.9,3303.3,3.02724]
[1722449652715,3.0,3303.8,3303.4,3.02712]
[1722449652917,3.0,3304.0,3303.4,3.02712]
[1722449653104,3.0,3304.0,3303.4,3.02714]
[1722449653304,3.0,3304.0,3303.9,3.02672]
[1722449653506,12.06694781,3304.5,3303.9,3.02665]
[1722449653507,1.25953133,3304.5,3303.9,3.02665]
[1722449653712,16.24953133,3304.7,3304.1,3.02648]
[1722449654015,14.99,3304.7,3304.1,3.02653]
[1722449654218,14.99,3304.7,3304.3,3.0263]
[1722449654415,14.99,3304.7,3304.3,0.06052143]
[1722449654645,14.99,3304.7,3304.4,3.02626]
[1722449654949,14.99,3304.7,3304.6,3.02608]
[1722449655250,14.99,3304.7,3304.6,11.636148]
[1722449655447,14.99,3304.7,3304.6,8.610068]
[1722449656034,14.99,3304.7,3304.6,11.636148]
[1722449656662,14.99,3304.7,3304.6,8.610068]
[1722449656866,14.99,3304.7,3304.6,11.636148]
[1722449657363,14.99,3304.7,3304.6,12.186148]
[1722449657565,1.88419518,3307.3,3306.4,3.02442]
[1722449657749,2.19822772,3308.5,3306.0,2.4047]
[1722449657750,2.259,3307.5,3306.1,3.394]
[1722449658075,3.02398,3306.9,3305.3,2.83166542]
[1722449658275,3.02361,3307.3,3306.2,3.02452]
[1722449658483,3.02353,3307.4,3306.4,3.02438]
[1722449658644,3.02377,3307.2,3306.4,3.02438]
[1722449658843,3.02392,3307.0,3306.1,3.02469]
[1722449659046,3.02372,3307.2,3305.7,3.394]
[1722449659289,3.628446,3307.2,3305.8,0.3394]
[1722449659489,3.02381,3307.1,3306.3,3.0245]
[1722449659709,3.02381,3307.1,3306.4,3.02442]
[1722449660047,0.604726,3307.2,3305.8,35.3394]
[1722449660048,3.0,3307.0,3306.5,3.02433]
[1722449660249,3.604726,3307.2,3306.6,3.02425]
[1722449660543,3.604726,3307.2,3306.3,3.02452]
[1722449660544,0.6628346,3307.1,3306.3,3.02452]
[1722449660742,3.0,3307.2,3306.7,3.02415]
[1722449660952,3.0,3307.4,3306.7,3.02415]
[1722449661184,3.02334,3307.6,3306.6,3.02424]
[1722449661371,3.02334,3307.6,3306.9,3.02397]
[1722449661946,3.02325,3307.7,3306.9,3.02388]
[1722449662153,3.02325,3307.7,3306.2,5.6696]
[1722449662154,0.302325,3307.7,3307.2,3.02369]
[1722449662446,5.5127,3308.1,3307.0,0.06047288]
[1722449662447,3.02307,3307.9,3307.0,0.06047288]
[1722449662980,3.02331,3307.7,3307.0,3.08429288]
[1722449663602,3.02307,3307.9,3307.1,3.02378]
[1722449664589,5.5127,3308.1,3307.2,3.08416973]
[1722449664902,5.5127,3308.1,3307.3,0.06046515]
[1722449664903,3.0,3308.0,3307.3,0.06046515]
[1722449665205,3.0,3308.0,3307.2,3.02364]
[1722449665506,3.02388,3307.0,3306.1,3.02468]
[1722449665705,3.02388,3307.0,3306.3,3.02451]
[1722449665868,3.02407,3306.8,3306.1,3.02468]
[1722449666068,3.02407,3306.8,3306.0,3.02474]
[1722449666307,3.628659,3307.0,3306.3,3.02451]
[1722449666466,0.604759,3307.0,3306.6,3.02425]
[1722449666673,3.0,3307.4,3306.6,3.02423]
[1722449667017,2.3245,3307.5,3306.6,3.0242]
[1722449667251,2.3245,3307.5,3306.2,3.02455]
[1722449667374,3.02404,3306.9,3306.2,3.0246]
[1722449667572,3.02387,3307.1,3306.1,3.02469]
[1722449667806,3.02387,3307.1,3305.7,5.7591]
[1722449667807,3.628621,3307.1,3306.4,3.02443]
[1722449668025,5.34794,3307.5,3306.6,3.02418]
[1722449668198,3.0,3307.6,3305.7,5.7591]
[1722449668199,3.0,3307.6,3306.7,0.06047024]
[1722449668526,3.02316,3307.8,3307.1,3.02378]
[1722449668702,3.0,3307.7,3307.1,3.02378]
[1722449669771,6.02325,3307.7,3307.1,3.02378]
[1722449669975,6.927881,3307.7,3307.0,0.06046913]
[1722449670208,3.02361,3307.4,3306.6,7.29]
[1722449670387,3.02368,3307.3,3306.6,10.31419]
[1722449670730,3.904631,3307.7,3306.6,7.29]
[1722449670877,6.927931,3307.7,3307.0,3.02388]
[1722449671295,3.0,3307.7,3307.2,3.0237]
[1722449671495,3.0,3307.7,3307.1,0.06047253]
[1722449671896,6.02325,3307.7,3307.1,0.06047253]
[1722449672304,3.02334,3307.6,3307.1,0.06047253]
[1722449672716,3.0,3307.7,3307.1,3.08426253]
[1722449673123,3.0,3307.7,3307.1,3.02379]
[1722449673281,3.904632,3307.7,3307.1,3.02379]
[1722449673602,3.02291,3308.1,3307.3,3.02354]
[1722449673802,3.0,3308.0,3307.3,3.02354]
[1722449674221,3.0,3308.0,3307.4,0.06046318]
[1722449674421,3.02307,3307.9,3307.2,3.02368]
[1722449674733,6.02298,3308.0,3307.3,3.08406317]
[1722449674896,6.92756,3308.0,3307.3,3.08406317]
[1722449675311,6.92756,3308.0,3307.3,3.0236]
[1722449676429,6.92756,3308.0,3306.5,3.394]
[1722449676430,3.02399,3306.9,3306.2,3.02461]
[1722449676639,9.9306,3307.9,3306.3,0.06047873]